bitfinex-derivatives/quotes_ETHF0:USTF0_20220103
["timestamp","ask_amount","ask_price","bid_price","bid_amount"]
[1641230438082,1.20163028,3752.9,3752.7,0.7623992]
[1641230439084,1.20163028,3753.0,3752.7,0.7623992]
[1641230441386,1.20163028,3753.1,3752.9,1.33140723]
[1641230442586,1.43162128,3753.1,3752.9,1.33140723]
[1641230442787,1.20163028,3753.4,3752.9,2.80563245]
[1641230442987,1.20163028,3753.4,3753.0,2.00479]
[1641230443787,0.47704757,3753.5,3753.3,0.88832678]
[1641230443986,0.229991,3753.4,3753.3,0.88832678]
[1641230444486,0.229991,3753.4,3753.3,1.93145951]
[1641230445589,0.70703857,3753.4,3753.3,1.93145951]
[1641230446890,2.20922867,3753.4,3753.3,1.04313273]
[1641230449192,3.70922867,3753.4,3753.3,1.04313273]
[1641230449595,2.20922867,3753.4,3753.3,1.04313273]
[1641230450296,1.97923767,3753.4,3753.3,1.04313273]
[1641230450496,0.70703857,3753.4,3753.3,1.04313273]
[1641230450695,0.47704757,3753.4,3753.3,1.04313273]
[1641230451595,0.70703857,3753.4,3753.3,1.04313273]
[1641230452995,1.73157994,3753.4,3753.3,1.04313273]
[1641230453396,1.50158894,3753.4,3753.3,1.04313273]
[1641230453695,1.73157994,3753.4,3753.3,1.04313273]
[1641230453896,1.97863651,3753.4,3753.3,1.04313273]
[1641230454697,2.20862751,3753.4,3753.3,1.04313273]
[1641230455097,1.73157994,3753.4,3753.3,1.04313273]
[1641230455397,1.50158894,3753.4,3753.3,1.04313273]
[1641230455596,1.73157994,3753.4,3753.3,1.04313273]
[1641230455797,0.70703857,3753.4,3753.3,1.04313273]
[1641230457496,0.70703857,3753.4,3753.3,1.93145951]
[1641230458999,0.70703857,3753.4,3753.3,1.04313273]
[1641230459196,13.68703857,3753.4,3753.3,1.04313273]
[1641230459896,12.18703857,3753.4,3753.3,1.04313273]
[1641230460095,0.70703857,3753.4,3753.3,1.04313273]
[1641230462303,0.70703857,3753.4,3752.9,0.88832678]
[1641230462304,11.48,3753.3,3752.9,0.88832678]
[1641230463104,1.50193843,3753.1,3752.9,0.88832678]
[1641230463304,12.98193843,3753.1,3753.0,0.7515269]
[1641230464107,13.21192943,3753.1,3753.0,0.7515269]
[1641230464708,1.73192943,3753.1,3753.0,1.43262196]
[1641230464910,1.50193843,3753.1,3753.0,1.43262196]
[1641230465308,1.978986,3753.1,3753.0,1.43262196]
[1641230466709,0.47704757,3753.1,3753.0,2.32094874]
[1641230467009,0.47704757,3753.1,3753.0,1.56942184]
[1641230468513,0.47704757,3753.1,3753.0,0.68109506]
[1641230468912,0.70703857,3753.1,3753.0,0.68109506]
[1641230469413,0.47704757,3753.1,3753.0,0.68109506]
[1641230469615,1.67849332,3753.1,3753.0,0.68109506]
[1641230470714,1.90848432,3753.1,3753.0,0.68109506]
[1641230471416,1.67849332,3753.1,3753.0,0.68109506]
[1641230471917,1.90848432,3753.1,3753.0,0.68109506]
[1641230472718,1.67849332,3753.1,3753.0,0.68109506]
[1641230472918,1.90848432,3753.1,3753.0,0.68109506]
[1641230473319,0.47704757,3753.1,3753.0,0.68109506]
[1641230474719,0.70703857,3753.1,3753.0,0.68109506]
[1641230475719,1.90850704,3753.1,3753.0,0.68109506]
[1641230476219,13.38850704,3753.1,3753.0,0.68109506]
[1641230476419,14.09830704,3753.1,3753.0,0.68109506]
[1641230476619,15.59830704,3753.1,3753.0,0.68109506]
[1641230476820,15.59830704,3753.1,3752.5,1.47422522]
[1641230477020,1.5,3752.6,3751.9,2.72137584]
[1641230477422,2.00479,3752.0,3751.9,2.72137584]
[1641230477626,4.353281,3752.0,3751.9,2.72137584]
[1641230477822,2.853281,3752.0,3751.9,2.72137584]
[1641230478024,2.853281,3752.0,3751.2,32.705]
[1641230478424,2.853281,3752.0,3751.2,32.833157]
[1641230479024,2.853281,3752.0,3751.2,0.128157]
[1641230479524,2.853281,3752.0,3751.2,0.69285344]
[1641230484028,2.853281,3752.0,3751.2,0.82101044]
[1641230485633,2.62329,3752.0,3751.2,0.82101044]
[1641230487135,2.62329,3752.0,3751.3,1.33197649]
[1641230488038,2.62329,3752.0,3751.2,0.82101044]
[1641230489837,2.62329,3752.0,3751.2,0.69285344]
[1641230491242,2.62329,3752.0,3751.3,0.128157]
[1641230493840,2.62329,3752.0,3751.5,0.88268575]
[1641230494642,2.00479,3752.0,3751.5,0.88268575]
[1641230497448,13.48479,3752.0,3751.5,0.88268575]
[1641230497648,15.04811692,3752.0,3751.5,0.88268575]
[1641230497847,15.04811692,3752.0,3751.4,0.88268575]
[1641230498850,3.56811692,3752.0,3751.4,0.128157]
[1641230499253,2.00479,3752.0,3751.4,0.128157]
[1641230500050,2.00479,3752.0,3751.4,1.01084275]
[1641230500452,2.00479,3752.0,3751.4,0.88268575]
[1641230501253,2.00479,3752.0,3751.5,0.128157]
[1641230502352,2.00479,3752.0,3751.8,0.88268575]
[1641230502553,2.00479,3752.0,3751.9,1.16981517]
[1641230503154,2.234781,3752.0,3751.9,1.16981517]
[1641230503457,2.00479,3752.0,3751.9,1.16981517]
[1641230504055,2.234781,3752.0,3751.9,1.16981517]
[1641230504855,2.00479,3752.0,3751.9,1.16981517]
[1641230505756,2.234781,3752.0,3751.9,1.16981517]
[1641230508661,2.00479,3752.0,3751.9,1.16981517]
[1641230509959,2.234781,3752.0,3751.9,1.16981517]
[1641230510661,2.00479,3752.0,3751.9,1.16981517]
[1641230511266,1e-08,3752.0,3751.9,1.16981517]
[1641230511463,2.00479,3752.4,3751.9,1.16981517]
[1641230513669,1.19801931,3752.5,3751.9,1.16981517]
[1641230513670,1.19801931,3752.5,3751.9,4.05729092]
[1641230514067,3.27480366,3752.7,3751.9,4.05729092]
[1641230514768,3.27480366,3752.7,3752.0,0.88268575]
[1641230519174,2.00479,3752.7,3752.0,0.88268575]
[1641230519373,2.00479,3752.7,3751.9,4.05729092]
[1641230520478,2.00479,3752.7,3752.1,0.88268575]
[1641230523181,1.19801931,3752.5,3752.4,0.88268575]
[1641230523379,1.19801931,3752.5,3752.4,1.01084275]
[1641230523581,1.19801931,3752.5,3752.4,2.07440228]
[1641230524383,1.19801931,3752.5,3752.4,1.94624528]
[1641230524584,1.42801031,3752.5,3752.4,1.94624528]
[1641230524783,0.229991,3752.5,3752.4,1.06355953]
[1641230525385,0.52148137,3752.6,3752.4,1.06355953]
[1641230525688,0.52148137,3752.6,3752.4,1.88315953]
[1641230525885,3.20280931,3752.7,3752.4,1.88315953]
[1641230526286,2.00479,3752.7,3752.4,2.76584528]
[1641230526890,0.229991,3752.6,3752.4,2.76584528]
[1641230527186,2.00479,3752.7,3752.4,2.76584528]
[1641230527888,0.229991,3752.6,3752.4,2.76584528]
[1641230528289,2.00479,3752.7,3752.4,2.76584528]
[1641230528793,1.49761124,3753.1,3752.4,5.59743157]
[1641230529189,30.7644,3753.6,3752.4,5.59743157]
[1641230529389,2.23201874,3753.7,3752.7,1.5]
[1641230529590,2.23201874,3753.7,3752.5,1.5]
[1641230529890,2.23201874,3753.7,3753.0,2.00479]
[1641230530090,1.785615,3753.6,3753.1,0.128157]
[1641230530589,1.785615,3753.6,3753.2,0.91126413]
[1641230530792,1.785615,3753.6,3753.2,1.71696413]
[1641230531494,0.50799537,3753.7,3753.2,1.71696413]
[1641230533594,0.75133506,3754.0,3753.2,2.59964988]
[1641230533795,0.50799537,3754.1,3753.2,2.59964988]
[1641230533998,0.50799537,3754.1,3753.5,2.00479]
[1641230534596,0.50799537,3753.9,3753.5,2.00479]
[1641230535496,7.11289186,3754.3,3753.5,2.00479]
[1641230535497,0.50799537,3753.8,3753.5,2.00479]
[1641230535896,0.50799537,3753.8,3753.6,2.00479]
[1641230536096,0.50799537,3753.8,3753.7,1.14430964]
[1641230536297,0.75133506,3754.3,3753.7,1.14430964]
[1641230537295,1.785615,3754.4,3753.7,1.14430964]
[1641230537696,1.5,3754.3,3753.7,1.14430964]
[1641230537897,1.5,3754.3,3754.0,2.00479]
[1641230537898,14.48,3754.1,3754.0,2.00479]
[1641230538296,3.0,3754.1,3754.0,2.00479]
[1641230538496,2.79139256,3754.2,3754.0,2.00479]
[1641230539397,5.32834262,3754.2,3754.0,2.00479]
[1641230539997,4.57700756,3754.2,3754.0,2.00479]
[1641230540697,4.34701656,3754.2,3754.0,2.00479]
[1641230541100,4.57700756,3754.2,3754.0,2.00479]
[1641230541300,2.015606,3754.2,3754.0,2.00479]
[1641230541500,1.785615,3754.2,3754.0,2.00479]
[1641230542098,0.75133506,3754.4,3754.0,2.00479]
[1641230542099,1.785615,3754.3,3754.0,2.00479]
[1641230543100,0.229991,3754.2,3754.0,2.00479]
[1641230543701,1.785615,3754.3,3754.0,2.00479]
[1641230543902,1.49995851,3754.1,3754.0,2.00479]
[1641230544106,1.49995851,3754.1,3754.0,3.50479]
[1641230544304,2.9833538,3754.6,3754.0,3.33561606]
[1641230544501,2.9833538,3754.6,3754.0,3.85181606]
[1641230544702,0.75133506,3754.6,3754.4,1.5]
[1641230544902,1.79981138,3754.6,3754.4,1.5]
[1641230545903,1.79981138,3754.6,3754.5,2.00479]
[1641230546103,1.79981138,3754.6,3754.5,3.22798624]
[1641230546306,0.75133506,3754.7,3754.5,3.22798624]
[1641230546506,1.19965744,3754.9,3754.5,3.22798624]
[1641230547709,2.00479,3755.8,3754.5,3.22798624]
[1641230548310,13.48479,3755.8,3754.5,3.22798624]
[1641230549015,1.5,3755.7,3754.5,3.22798624]
[1641230549214,13.48479,3755.8,3754.5,3.22798624]
[1641230550415,1.5,3754.9,3754.5,3.22798624]
[1641230550618,1.5,3754.9,3754.0,2.00479]
[1641230550619,1.5,3754.7,3754.0,2.00479]
[1641230550818,11.48,3754.8,3754.0,2.00479]
[1641230551221,12.98,3754.8,3754.0,2.00479]
[1641230551518,11.48,3754.8,3754.0,2.00479]
[1641230551717,11.48,3754.8,3754.1,1.11455966]
[1641230552117,3.41055462,3754.9,3754.4,2.00479]
[1641230552519,0.6556,3754.9,3754.4,2.00479]
[1641230554721,3.19346702,3755.3,3754.4,2.00479]
[1641230556122,3.19346702,3755.3,3754.5,0.128157]
[1641230556323,3.19346702,3755.3,3754.4,2.00479]
[1641230557225,3.19346702,3755.3,3754.5,1.17549721]
[1641230557924,14.67346702,3755.3,3754.5,1.17549721]
[1641230558124,14.67346702,3755.3,3754.6,0.128157]
[1641230560430,14.67346702,3755.3,3754.5,1.17549721]
[1641230561635,3.19346702,3755.3,3754.5,1.17549721]
[1641230562232,14.67346702,3755.3,3754.5,1.17549721]
[1641230562433,1.00472709,3755.2,3754.5,1.17549721]
[1641230563333,1.19273144,3755.2,3754.5,1.17549721]
[1641230563836,12.67273144,3755.2,3754.5,1.17549721]
[1641230564036,2.00479,3755.3,3754.5,1.30365421]
[1641230565737,13.48479,3755.3,3754.5,1.30365421]
[1641230566440,2.00479,3755.3,3754.5,1.30365421]
[1641230571844,13.48479,3755.3,3754.5,1.30365421]
[1641230573746,2.00479,3755.3,3754.5,1.30365421]
[1641230576149,13.48479,3755.3,3754.5,1.30365421]
[1641230576349,13.48479,3755.3,3754.5,1.17549721]
[1641230576749,13.48479,3755.3,3754.6,0.128157]
[1641230581362,11.48,3755.3,3754.6,0.128157]
[1641230581563,11.48,3755.3,3754.5,1.17549721]
[1641230582465,13.48479,3755.3,3754.5,1.17549721]
[1641230582865,13.48479,3755.3,3754.5,1.30365421]
[1641230584270,1.48860877,3755.0,3754.7,0.88268575]
[1641230585170,0.229991,3754.9,3754.7,0.88268575]
[1641230586172,1.48860877,3755.0,3754.7,0.88268575]
[1641230589074,0.229991,3754.9,3754.7,0.88268575]
[1641230589875,0.45087691,3754.8,3754.7,0.88268575]
[1641230590774,1.48860877,3755.0,3754.7,0.88268575]
[1641230590975,0.229991,3754.9,3754.7,0.88268575]
[1641230591176,0.738691,3754.9,3754.7,0.88268575]
[1641230591675,0.5087,3754.9,3754.7,0.88268575]
[1641230592176,1.99730877,3754.9,3754.6,0.88268575]
[1641230592876,0.68086791,3754.8,3754.6,0.88268575]
[1641230594378,0.45087691,3754.7,3754.6,0.88268575]
[1641230595081,0.229991,3754.8,3754.6,0.88268575]
[1641230595778,0.229991,3754.8,3754.7,0.88268575]
[1641230596378,1.48860877,3755.0,3754.7,0.88268575]
[1641230596579,0.229991,3754.9,3754.7,0.88268575]
[1641230598584,1.48860877,3755.0,3754.7,0.88268575]
[1641230598983,0.229991,3754.9,3754.7,0.88268575]
[1641230599585,1.48860877,3755.0,3754.7,0.88268575]
[1641230599785,1.48860877,3755.0,3754.7,1.60128575]
[1641230603392,0.229991,3754.9,3754.7,1.60128575]
[1641230603590,1.48860877,3755.0,3754.7,1.60128575]
[1641230605297,1.48860877,3754.9,3754.7,0.7186]
[1641230605492,1.48860877,3754.9,3754.6,1.01084275]
[1641230606495,1.48860877,3754.9,3754.6,0.88268575]
[1641230607393,1.48860877,3754.9,3754.7,0.88268575]
[1641230607594,0.229991,3754.8,3754.7,0.88268575]
[1641230607794,1.48860877,3754.9,3754.7,0.88268575]
[1641230608795,1.71859977,3754.9,3754.7,0.88268575]
[1641230608998,0.229991,3754.9,3754.7,0.88268575]
[1641230609796,1.71859977,3754.9,3754.6,0.88268575]
[1641230611400,0.45125177,3754.8,3754.6,0.88268575]
[1641230611898,0.68124277,3754.8,3754.6,0.88268575]
[1641230612999,0.229991,3754.8,3754.7,0.88268575]
[1641230615403,1.48860877,3755.0,3754.7,0.88268575]
[1641230615805,1.48860877,3755.0,3754.7,1.41358575]
[1641230617706,1.48860877,3755.2,3754.7,0.5309]
[1641230619407,3.49339877,3755.3,3755.0,0.88324833]
[1641230619608,3.49339877,3755.3,3755.1,1.31020375]
[1641230620408,0.229991,3755.2,3755.1,1.31020375]
[1641230620808,3.49339877,3755.3,3755.1,1.31020375]
[1641230621311,3.72338977,3755.3,3755.1,1.31020375]
[1641230621708,3.49339877,3755.3,3755.1,1.31020375]
[1641230623511,0.229991,3755.2,3755.1,1.31020375]
[1641230623712,1.78633053,3755.5,3755.1,1.31020375]
[1641230623915,1.78633053,3755.5,3755.4,4.00958]
[1641230624117,2.98305576,3755.8,3755.4,4.137737]
[1641230624315,1.80147299,3755.6,3755.4,5.637737]
[1641230624714,1.68984452,3756.0,3755.5,1.33044715]
[1641230624913,1.68984452,3756.0,3755.5,2.04794715]
[1641230625114,2.97602499,3756.1,3755.5,2.04794715]
[1641230625713,30.4369,3756.9,3755.5,2.04794715]
[1641230625714,1.20070025,3756.0,3755.5,2.04794715]
[1641230625914,1.20070025,3756.0,3755.9,2.00479]
[1641230627421,30.4369,3756.9,3755.9,2.00479]
[1641230627820,37.21482972,3757.1,3756.5,2.00479]
[1641230628020,2.97602499,3757.1,3756.6,1.04709159]
[1641230628221,2.97602499,3757.3,3756.6,1.04709159]
[1641230628623,14.45602499,3757.3,3756.6,1.04709159]
[1641230628825,2.97602499,3757.3,3756.6,1.04709159]
[1641230629424,1.13216019,3757.6,3756.6,1.04709159]
[1641230629723,2.00479,3757.7,3756.6,1.04709159]
[1641230630124,13.48479,3757.7,3756.6,1.04709159]
[1641230630424,14.98479,3757.7,3756.6,1.04709159]
[1641230630625,13.48479,3757.7,3756.6,1.04709159]
[1641230630824,14.98479,3757.7,3756.6,1.04709159]
[1641230631023,0.90234129,3757.6,3756.6,1.04709159]
[1641230631723,0.90234129,3757.6,3756.6,0.91893459]
[1641230632125,2.00479,3757.7,3756.6,0.91893459]
[1641230632725,0.79839283,3757.6,3756.6,0.91893459]
[1641230633326,12.27839283,3757.6,3756.6,0.91893459]
[1641230634028,11.48,3757.4,3756.6,0.91893459]
[1641230634226,3.0,3757.3,3756.6,0.91893459]
[1641230634428,11.48,3757.2,3756.6,0.91893459]
[1641230634627,11.48,3757.2,3756.6,1.04709159]
[1641230636027,0.79842174,3757.5,3756.6,1.04709159]
[1641230638834,0.79842174,3757.5,3756.6,1.82449159]
[1641230641034,11.48,3757.3,3756.6,1.82449159]
[1641230641434,11.48,3757.3,3756.6,1.69633459]
[1641230641833,0.79850249,3757.1,3756.6,0.91893459]
[1641230642434,12.27858703,3756.7,3756.0,1.3303091]
[1641230642634,12.27858703,3756.7,3755.9,2.88046178]
[1641230642834,12.27858703,3756.7,3756.1,1.24804094]
[1641230644038,2.00479,3756.4,3756.1,1.24804094]
[1641230644442,12.2786978,3756.2,3756.1,1.24804094]
[1641230644842,0.7986978,3756.2,3756.1,1.24804094]
[1641230645542,2.00479,3756.4,3756.1,1.24804094]
[1641230646142,2.00479,3756.4,3756.2,0.128157]
[1641230646344,2.96307132,3756.8,3756.2,0.128157]
[1641230646745,2.00479,3756.8,3756.2,0.128157]
[1641230647844,2.00479,3756.8,3756.3,1.33021]
[1641230650846,13.48479,3756.8,3756.3,1.33021]
[1641230651246,2.00479,3756.8,3756.3,1.458367]
[1641230651847,13.48479,3756.8,3756.3,1.33021]
[1641230652049,13.48479,3756.8,3756.1,1.24804094]
[1641230652247,11.48,3756.3,3755.9,2.00479]
[1641230652853,15.34587783,3756.5,3755.9,2.00479]
[1641230653048,15.34587783,3756.5,3756.0,0.90305751]
[1641230653249,0.86587783,3756.5,3756.0,1.03121451]
[1641230653748,2.00479,3756.8,3756.0,1.03121451]
[1641230654148,13.48479,3756.8,3756.0,0.90305751]
[1641230655350,13.48479,3756.8,3756.1,0.128157]
[1641230655551,2.00479,3756.8,3756.1,0.128157]
[1641230657656,11.48,3756.7,3756.1,0.128157]
[1641230658655,2.00479,3756.8,3756.1,0.128157]
[1641230659255,2.00479,3756.8,3756.0,0.90305751]
[1641230659456,2.00479,3756.8,3756.0,1.03121451]
[1641230659656,13.48479,3756.8,3756.0,0.90305751]
[1641230659857,0.79861015,3756.6,3756.0,0.90305751]
[1641230662063,0.79861015,3756.6,3756.0,1.03121451]
[1641230665763,0.79861015,3756.6,3756.0,0.90305751]
[1641230666566,0.36803931,3756.5,3756.2,1.45966535]
[1641230666967,0.229991,3756.4,3756.2,1.45966535]
[1641230667670,0.36803931,3756.5,3756.2,1.45966535]
[1641230670474,0.36803931,3756.5,3756.1,1.45966535]
[1641230671275,0.36803931,3756.5,3756.2,1.45966535]
[1641230671473,0.229991,3756.4,3756.2,1.45966535]
[1641230671873,0.36803931,3756.5,3756.2,1.45966535]
[1641230672072,0.36803931,3756.5,3756.1,1.45966535]
[1641230674879,1.99260111,3756.6,3756.1,1.45966535]
[1641230675080,1.99260111,3756.6,3756.4,0.88287467]
[1641230675281,0.229991,3756.5,3756.4,0.88287467]
[1641230675683,11.709991,3756.5,3756.4,0.88287467]
[1641230678386,2.66467336,3756.6,3756.4,0.88287467]
[1641230678685,0.229991,3756.5,3756.4,1.65957467]
[1641230679086,2.66467336,3756.6,3756.4,1.65957467]
[1641230680188,2.89466436,3756.6,3756.4,1.65957467]
[1641230681289,6.19878096,3756.8,3756.4,1.65957467]
[1641230681489,14.67878096,3756.8,3756.4,1.65957467]
[1641230682790,0.36700661,3756.7,3756.5,0.88287467]
[1641230682991,0.229991,3756.6,3756.5,0.88287467]
[1641230683791,0.229991,3756.6,3756.4,1.65957467]
[1641230686391,13.48479,3756.8,3756.4,1.65957467]
[1641230686591,0.79862163,3756.5,3756.4,1.65957467]
[1641230686791,1.02861263,3756.5,3756.4,1.65957467]
[1641230688997,1.39623005,3756.5,3756.4,0.7767]
[1641230689197,14.07022101,3756.5,3756.1,1.45966535]
[1641230689396,2.59022101,3756.5,3756.1,1.45966535]
[1641230689597,2.36023001,3756.5,3756.1,1.45966535]
[1641230690902,0.36761742,3756.4,3756.2,0.128157]
[1641230691096,0.36761742,3756.4,3756.2,0.799857]
[1641230691497,0.59760842,3756.4,3756.2,0.799857]
[1641230691703,1.99261259,3756.5,3756.2,0.799857]
[1641230691898,0.79862163,3756.5,3756.2,2.25952235]
[1641230694503,0.37086947,3756.4,3756.2,2.25952235]
[1641230694908,0.229991,3756.3,3756.2,2.25952235]
[1641230695105,0.37086947,3756.4,3756.2,2.25952235]
[1641230696309,0.229991,3756.3,3756.2,2.13136535]
[1641230697007,3.229991,3756.3,3756.2,2.13136535]
[1641230697207,11.48,3756.0,3755.3,4.95324044]
[1641230697407,1.5,3755.4,3755.0,2.88556305]
[1641230697608,12.171,3755.4,3754.8,6.18803554]
[1641230698007,12.171,3755.4,3754.8,2.90908028]
[1641230698219,12.171,3755.4,3754.9,1.29982316]
[1641230698810,2.00479,3755.1,3754.9,1.42798016]
[1641230699610,0.38342529,3755.3,3754.9,1.42798016]
[1641230699810,0.38342529,3755.3,3754.9,2.25658016]
[1641230700412,1.19399096,3755.4,3754.9,2.25658016]
[1641230700815,2.00479,3755.5,3754.9,5.59207933]
[1641230701713,2.00479,3755.5,3754.9,4.26137016]
[1641230704316,2.00479,3755.5,3755.4,0.88236988]
[1641230704516,2.00479,3755.5,3755.4,1.98232707]
[1641230704917,2.234781,3755.5,3755.4,1.98232707]
[1641230705615,2.00479,3755.5,3755.4,1.98232707]
[1641230705818,2.234781,3755.5,3755.4,1.98232707]
[1641230707219,2.234781,3755.5,3755.4,1.09995719]
[1641230708119,2.00479,3755.5,3755.4,1.09995719]
[1641230708919,2.00479,3755.5,3755.4,1.98232707]
[1641230709125,2.234781,3755.5,3755.4,1.98232707]
[1641230710624,2.00479,3755.5,3755.4,1.98232707]
[1641230711227,2.234781,3755.5,3755.4,1.98232707]
[1641230711428,2.00479,3755.5,3755.4,1.98232707]
[1641230711728,6.28690777,3756.1,3755.4,1.98232707]
[1641230712032,5.00479,3756.2,3755.4,1.98232707]
[1641230712925,5.00479,3756.2,3755.6,2.00479]
[1641230713326,5.00479,3756.2,3755.8,0.88236988]
[1641230714025,5.00479,3756.2,3755.9,1.04862637]
[1641230714228,0.229991,3756.1,3755.9,1.04862637]
[1641230715226,5.00479,3756.2,3755.9,1.04862637]
[1641230715628,5.00479,3756.2,3755.9,1.93099625]
[1641230716329,0.229991,3756.1,3755.9,1.93099625]
[1641230716529,2.00479,3756.2,3755.9,1.93099625]
[1641230717330,0.229991,3756.1,3755.9,1.93099625]
[1641230717532,2.00479,3756.2,3755.9,1.93099625]
[1641230717731,2.00479,3756.2,3755.9,1.04862637]
[1641230718833,2.00479,3756.2,3755.9,1.93099625]
[1641230719032,0.229991,3756.1,3755.9,1.93099625]
[1641230720133,2.00479,3756.2,3755.9,1.93099625]
[1641230720333,0.229991,3756.1,3755.9,1.93099625]
[1641230720740,11.48,3756.0,3755.9,1.93099625]
[1641230720934,11.48,3756.0,3755.9,1.13224584]
[1641230721634,11.48,3756.0,3755.9,0.24987596]
[1641230722533,3.229991,3756.1,3755.9,0.24987596]
[1641230722734,14.709991,3756.1,3755.9,0.24987596]
[1641230726640,2.8034872,3756.2,3755.9,0.24987596]
[1641230726840,0.229991,3756.1,3755.9,0.24987596]
[1641230727240,2.8034872,3756.2,3755.9,0.24987596]
[1641230727942,0.229991,3756.1,3755.9,0.24987596]
[1641230728142,2.8034872,3756.2,3755.9,0.24987596]
[1641230731050,0.229991,3756.1,3755.9,0.24987596]
[1641230731248,2.8034872,3756.2,3755.9,0.24987596]
[1641230732950,2.8034872,3756.2,3755.9,1.13224584]
[1641230733947,0.229991,3756.1,3755.9,1.13224584]
[1641230734147,2.8034872,3756.2,3755.9,1.13224584]
[1641230735751,0.229991,3756.1,3755.9,1.13224584]
[1641230736050,2.8034872,3756.2,3755.9,1.13224584]
[1641230736754,0.229991,3756.1,3755.9,1.13224584]
[1641230737155,2.8034872,3756.2,3755.9,1.13224584]
[1641230737856,0.229991,3756.1,3755.9,1.13224584]
[1641230738856,0.229991,3756.0,3755.9,1.13224584]
[1641230739058,19.75485681,3756.0,3755.3,1.47019969]
[1641230739258,2.00479,3755.7,3755.3,1.47019969]
[1641230739460,2.75129,3755.7,3755.3,1.47019969]
[1641230739862,2.75129,3755.7,3755.1,0.128157]
[1641230739863,2.75129,3755.7,3755.4,1.47019969]
[1641230740058,0.229991,3755.6,3755.4,1.47019969]
[1641230740260,2.00479,3755.7,3755.5,0.74181403]
[1641230742060,2.234781,3755.7,3755.5,0.74181403]
[1641230742460,2.00479,3755.7,3755.5,0.74181403]
[1641230742860,0.229991,3755.6,3755.5,0.74181403]
[1641230743664,2.00479,3755.7,3755.5,0.74181403]
[1641230744062,0.229991,3755.6,3755.5,0.74181403]
[1641230744663,0.772491,3755.6,3755.5,0.74181403]
[1641230747767,17.0265094,3755.6,3755.5,0.74181403]
[1641230750882,5.3665184,3755.6,3755.5,0.74181403]
[1641230751278,0.5425,3755.6,3755.5,0.74181403]
[1641230751478,2.00479,3755.7,3755.5,0.74181403]
[1641230752180,0.4578047,3755.6,3755.5,0.74181403]
[1641230752982,0.6877957,3755.6,3755.5,0.74181403]
[1641230753182,2.00479,3755.7,3755.5,0.74181403]
[1641230753781,0.229991,3755.6,3755.5,0.74181403]
[1641230754384,0.68780387,3755.6,3755.5,0.74181403]
[1641230754582,0.45781287,3755.6,3755.5,0.74181403]
[1641230757385,0.68780387,3755.6,3755.5,0.74181403]
[1641230757584,0.45781287,3755.6,3755.5,0.74181403]
[1641230758388,1.24341287,3755.6,3755.5,0.74181403]
[1641230759191,1.24341287,3755.6,3755.5,1.63062449]
[1641230760494,2.00479,3755.7,3755.5,0.74181403]
[1641230761395,2.00479,3755.7,3755.6,0.88933497]
[1641230762396,2.46513881,3755.7,3755.6,0.88933497]
[1641230763096,2.46513881,3755.7,3755.5,0.74181403]
[1641230764898,2.00479,3755.7,3755.5,0.74181403]
[1641230770907,1.19399096,3756.0,3755.6,1.5]
[1641230771110,1.79099889,3756.6,3755.9,2.83024185]
[1641230771311,3.74203803,3757.4,3756.5,1.5]
[1641230771511,3.74203803,3757.4,3757.0,1.5]
[1641230771710,3.74203803,3757.4,3757.0,3.50479]
[1641230771909,3.74203803,3757.4,3757.3,2.82980492]
[1641230772109,3.74203803,3757.4,3757.3,3.38130492]
[1641230772911,2.2485718,3757.4,3757.3,3.38130492]
[1641230774311,3.74203803,3758.0,3757.3,3.38130492]
[1641230774513,4.09203437,3758.3,3757.9,2.82962103]
[1641230774811,0.4043,3758.8,3757.9,2.82962103]
[1641230775211,0.4043,3758.8,3758.0,1.5]
[1641230775410,0.4043,3758.8,3758.0,2.65077409]
[1641230775610,4.86429438,3758.1,3758.0,2.65077409]
[1641230775810,2.00479,3758.7,3758.0,2.65077409]
[1641230776011,2.00479,3758.7,3758.0,1.15077409]
[1641230777012,35.85782317,3758.4,3758.0,1.15077409]
[1641230777212,39.60972317,3758.4,3758.0,1.15077409]
[1641230777613,25.17972317,3758.4,3758.0,1.15077409]
[1641230777813,2.00479,3758.1,3758.0,1.15077409]
[1641230782616,1.19882312,3758.3,3758.0,1.15077409]
[1641230782816,1.19882312,3758.3,3758.0,1.77257409]
[1641230784519,1.19882312,3758.5,3758.0,1.77257409]
[1641230785218,1.19882312,3758.4,3758.0,1.77257409]
[1641230786117,1.19882312,3758.4,3758.0,1.15077409]
[1641230788825,1.19882312,3758.3,3758.0,1.15077409]
[1641230789023,0.229991,3758.2,3758.0,1.15077409]
[1641230790023,1.19882312,3758.4,3758.0,1.15077409]
[1641230791823,0.28215819,3758.6,3758.0,1.15077409]
[1641230791824,1.19882312,3758.3,3758.0,1.15077409]
[1641230792025,0.229991,3758.2,3758.0,1.15077409]
[1641230792224,1.19882312,3758.3,3758.0,1.15077409]
[1641230792424,1.19882312,3758.3,3758.1,1.32955562]
[1641230792826,1.19882312,3758.3,3758.0,1.74497409]
[1641230793829,1.78067848,3758.6,3758.0,1.74497409]
[1641230793830,1.19882312,3758.5,3758.0,1.74497409]
[1641230794027,1.19882312,3758.5,3758.1,2.00479]
[1641230794429,1.48098131,3758.6,3758.3,0.88335593]
[1641230794628,1.48098131,3758.6,3758.4,1.5]
[1641230794826,1.48098131,3758.6,3758.3,2.21285852]
[1641230795627,1.48098131,3758.6,3758.3,0.88335593]
[1641230796027,1.48098131,3758.6,3758.1,2.00479]
[1641230796028,1.19882312,3758.7,3758.5,2.88814593]
[1641230796227,1.19882312,3758.7,3758.6,1.13736518]
[1641230799233,0.28215819,3758.8,3758.6,1.13736518]
[1641230799435,1.78067848,3758.8,3758.6,1.13736518]
[1641230799637,2.01066948,3758.8,3758.6,1.13736518]
[1641230799839,1.78067848,3758.8,3758.6,1.13736518]
[1641230800436,1.78067848,3758.8,3758.7,0.88434298]
[1641230801037,2.01066948,3758.8,3758.7,0.88434298]
[1641230802139,1.78067848,3758.8,3758.7,0.88434298]
[1641230802538,1.78067848,3758.8,3758.6,2.02170816]
[1641230803239,0.229991,3758.7,3758.6,2.02170816]
[1641230803443,1.78067848,3758.8,3758.7,0.88434298]
[1641230804039,2.01066948,3758.8,3758.7,0.88434298]
[1641230804844,1.78067848,3758.8,3758.7,0.88434298]
[1641230806246,1.78067848,3758.8,3758.6,1.13736518]
[1641230806446,0.28215819,3758.8,3758.6,1.13736518]
[1641230807646,1.20007276,3758.7,3758.6,1.13736518]
[1641230809653,0.229991,3758.7,3758.6,1.13736518]
[1641230809850,0.28215819,3758.8,3758.6,1.13736518]
[1641230810453,0.28215819,3758.7,3758.6,1.13736518]
[1641230811460,1.20008746,3758.7,3758.6,1.13736518]